[Event "Titled Tuesday Blitz June 6 Late 2023"]
[White "Omranalhosani21"]
[Black "Gadimbayli, Abdulla"]
[BlackFideId "13404938"]
[WhiteElo "2614"]
[BlackElo "2386"]
[Result "0-1"]
[Round "5"]
[TimeControl "180+2"]
[Date "2023.06.07"]
[WhiteClock "0:00:07"]
[BlackClock "0:00:53"]
[Board "44"]

1. e4 {[%clk 0:02:59]}  c5 {[%clk 0:03:00]} 2. Nf3 {[%clk 0:03:00]}  d6 {[%clk 0:03:01]} 3. Bb5+ {[%clk 0:02:59]}  Bd7 {[%clk 0:02:57]} 4. Bd3 {[%clk 0:02:58]}  Nc6 {[%clk 0:02:56]} 5. c3 {[%clk 0:02:59]}  g6 {[%clk 0:02:55]} 6. O-O {[%clk 0:02:59]}  Bg7 {[%clk 0:02:56]} 7. Bc2 {[%clk 0:02:59]}  e5 {[%clk 0:02:57]} 8. Re1 {[%clk 0:02:55]}  Nge7 {[%clk 0:02:56]} 9. d3 {[%clk 0:02:52]}  O-O {[%clk 0:02:57]} 10. Nbd2 {[%clk 0:02:52]}  h6 {[%clk 0:02:55]} 11. Rb1 {[%clk 0:02:50]}  Be6 {[%clk 0:02:51]} 12. Bb3 {[%clk 0:02:46]}  Kh7 {[%clk 0:02:41]} 13. Nf1 {[%clk 0:02:40]}  d5 {[%clk 0:02:34]} 14. Ng3 {[%clk 0:02:36]}  Qd7 {[%clk 0:02:25]} 15. Qe2 {[%clk 0:02:25]}  d4 {[%clk 0:02:23]} 16. cxd4 {[%clk 0:02:21]}  Bxb3 {[%clk 0:02:18]} 17. axb3 {[%clk 0:02:20]}  cxd4 {[%clk 0:02:18]} 18. Bd2 {[%clk 0:02:19]}  a5 {[%clk 0:02:11]} 19. Rec1 {[%clk 0:02:12]}  Qe6 {[%clk 0:02:11]} 20. Qd1 {[%clk 0:02:12]}  f5 {[%clk 0:01:47]} 21. h4 {[%clk 0:02:06]}  f4 {[%clk 0:01:46]} 22. Nf1 {[%clk 0:02:01]}  Bf6 {[%clk 0:01:44]} 23. Rc4 {[%clk 0:01:48]}  Rf7 {[%clk 0:01:44]} 24. Ra1 {[%clk 0:01:43]}  Rg8 {[%clk 0:01:34]} 25. Bxa5 {[%clk 0:01:38]}  g5 {[%clk 0:01:35]} 26. hxg5 {[%clk 0:01:03]}  Bxg5 {[%clk 0:01:35]} 27. Bc7 {[%clk 0:00:54]}  Bf6 {[%clk 0:01:24]} 28. Ne1 {[%clk 0:00:34]}  Ng6 {[%clk 0:01:21]} 29. Qh5 {[%clk 0:00:30]}  Rxc7 {[%clk 0:01:21]} 30. Nf3 {[%clk 0:00:26]}  Rcg7 {[%clk 0:01:17]} 31. b4 {[%clk 0:00:24]}  Nh4 {[%clk 0:01:09]} 32. Nxh4 {[%clk 0:00:23]}  Bxh4 {[%clk 0:01:09]} 33. g3 {[%clk 0:00:24]}  Qh3 {[%clk 0:00:51]} 34. b5 {[%clk 0:00:19]}  fxg3 {[%clk 0:00:51]} 35. fxg3 {[%clk 0:00:07]}  Rxg3+ {[%clk 0:00:51]} 36. Nxg3 {[%clk 0:00:07]}  Qxg3+ {[%clk 0:00:52]} 37. Kf1 {[%clk 0:00:07]}  Qf2# {[%clk 0:00:53]} 0-1


[Site "https://www.chess.com"]

[Event "Titled Tuesday Blitz June 6 Late 2023"]
[White "Yanchenko, Roman"]
[Black "Principe, Gerson"]
[WhiteFideId "4137329"]
[BlackFideId "3804550"]
[WhiteElo "2491"]
[BlackElo "2229"]
[Result "1-0"]
[Round "5"]
[TimeControl "180+2"]
[Date "2023.06.07"]
[WhiteClock "0:00:03"]
[BlackClock "0:00:01"]
[Board "46"]

1. d4 {[%clk 0:03:00]}  Nf6 {[%clk 0:02:59]} 2. Nf3 {[%clk 0:03:01]}  e6 {[%clk 0:02:59]} 3. c4 {[%clk 0:03:01]}  b6 {[%clk 0:03:00]} 4. Nc3 {[%clk 0:03:01]}  Bb7 {[%clk 0:03:00]} 5. Bg5 {[%clk 0:03:01]}  Bb4 {[%clk 0:03:01]} 6. Qc2 {[%clk 0:03:01]}  h6 {[%clk 0:02:59]} 7. Bh4 {[%clk 0:03:01]}  g5 {[%clk 0:03:00]} 8. Bg3 {[%clk 0:03:02]}  Ne4 {[%clk 0:03:00]} 9. e3 {[%clk 0:03:02]}  Bxc3+ {[%clk 0:02:58]} 10. bxc3 {[%clk 0:03:03]}  d6 {[%clk 0:02:58]} 11. Nd2 {[%clk 0:03:03]}  f5 {[%clk 0:02:55]} 12. f3 {[%clk 0:03:00]}  Nxd2 {[%clk 0:02:56]} 13. Qxd2 {[%clk 0:03:00]}  Nd7 {[%clk 0:02:55]} 14. h4 {[%clk 0:02:51]}  Kf7 {[%clk 0:02:39]} 15. d5 {[%clk 0:02:48]}  e5 {[%clk 0:02:34]} 16. Bd3 {[%clk 0:02:47]}  Qf6 {[%clk 0:02:34]} 17. Qc2 {[%clk 0:02:47]}  f4 {[%clk 0:02:30]} 18. Bf2 {[%clk 0:02:38]}  Nc5 {[%clk 0:02:30]} 19. O-O-O {[%clk 0:02:31]}  Nxd3+ {[%clk 0:02:27]} 20. Qxd3 {[%clk 0:02:31]}  Qg6 {[%clk 0:02:14]} 21. Qe2 {[%clk 0:01:59]}  Rag8 {[%clk 0:02:03]} 22. g3 {[%clk 0:01:57]}  fxg3 {[%clk 0:01:44]} 23. Bxg3 {[%clk 0:01:57]}  Bc8 {[%clk 0:01:43]} 24. Rdg1 {[%clk 0:01:34]}  Ke8 {[%clk 0:01:36]} 25. Be1 {[%clk 0:01:27]}  g4 {[%clk 0:01:23]} 26. Qd1 {[%clk 0:01:01]}  Bd7 {[%clk 0:01:13]} 27. h5 {[%clk 0:00:35]}  Qh7 {[%clk 0:01:12]} 28. e4 {[%clk 0:00:31]}  gxf3 {[%clk 0:00:59]} 29. Qxf3 {[%clk 0:00:31]}  Rf8 {[%clk 0:00:41]} 30. Qe2 {[%clk 0:00:31]}  Rf4 {[%clk 0:00:32]} 31. Rg6 {[%clk 0:00:31]}  Rhf8 {[%clk 0:00:21]} 32. c5 {[%clk 0:00:30]}  dxc5 {[%clk 0:00:16]} 33. d6 {[%clk 0:00:24]}  cxd6 {[%clk 0:00:13]} 34. Rhg1 {[%clk 0:00:20]}  Qe7 {[%clk 0:00:10]} 35. Rxh6 {[%clk 0:00:20]}  Bc6 {[%clk 0:00:07]} 36. Rhg6 {[%clk 0:00:17]}  Bxe4 {[%clk 0:00:07]} 37. Rg7 {[%clk 0:00:15]}  Qe6 {[%clk 0:00:05]} 38. h6 {[%clk 0:00:08]}  Qd5 {[%clk 0:00:04]} 39. Qb5+ {[%clk 0:00:08]}  Qc6 {[%clk 0:00:03]} 40. Qxc6+ {[%clk 0:00:08]}  Bxc6 {[%clk 0:00:04]} 41. h7 {[%clk 0:00:09]}  Be4 {[%clk 0:00:04]} 42. Rxa7 {[%clk 0:00:06]}  Bxh7 {[%clk 0:00:02]} 43. Rgg7 {[%clk 0:00:04]}  Bf5 {[%clk 0:00:01]} 44. Ra8+ {[%clk 0:00:03]} 1-0


[Site "https://www.chess.com"]

[Event "Titled Tuesday Blitz June 6 Late 2023"]
[White "reevecanada"]
[Black "Alex_Sahakyan2006"]
[WhiteElo "2591"]
[BlackElo "2697"]
[Result "1-0"]
[Round "5"]
[TimeControl "180+2"]
[Date "2023.06.07"]
[WhiteClock "0:01:05"]
[BlackClock "0:00:03"]
[Board "48"]

1. e4 {[%clk 0:02:28]}  e6 {[%clk 0:02:58]} 2. Nf3 {[%clk 0:02:27]}  d5 {[%clk 0:02:58]} 3. Nc3 {[%clk 0:02:25]}  d4 {[%clk 0:02:57]} 4. Ne2 {[%clk 0:02:25]}  c5 {[%clk 0:02:57]} 5. d3 {[%clk 0:02:25]}  Nc6 {[%clk 0:02:58]} 6. g3 {[%clk 0:02:26]}  Bd6 {[%clk 0:02:53]} 7. Bg2 {[%clk 0:02:26]}  Nge7 {[%clk 0:02:54]} 8. O-O {[%clk 0:02:26]}  O-O {[%clk 0:02:54]} 9. Nd2 {[%clk 0:02:26]}  f5 {[%clk 0:02:41]} 10. f4 {[%clk 0:02:23]}  Bc7 {[%clk 0:02:18]} 11. e5 {[%clk 0:02:04]}  Nd5 {[%clk 0:02:13]} 12. Nb3 {[%clk 0:02:03]}  b6 {[%clk 0:02:10]} 13. c4 {[%clk 0:02:01]}  dxc3 {[%clk 0:02:05]} 14. bxc3 {[%clk 0:02:02]}  Bb7 {[%clk 0:02:04]} 15. Bb2 {[%clk 0:02:00]}  Qd7 {[%clk 0:02:01]} 16. Qd2 {[%clk 0:02:00]}  Rad8 {[%clk 0:02:00]} 17. Rad1 {[%clk 0:01:56]}  Ba6 {[%clk 0:01:59]} 18. a3 {[%clk 0:01:50]}  Rb8 {[%clk 0:01:54]} 19. Rfe1 {[%clk 0:01:46]}  Rfd8 {[%clk 0:01:53]} 20. Qc1 {[%clk 0:01:42]}  c4 {[%clk 0:00:44]} 21. dxc4 {[%clk 0:01:36]}  Bxc4 {[%clk 0:00:45]} 22. Nbd4 {[%clk 0:01:37]}  Nxd4 {[%clk 0:00:39]} 23. Nxd4 {[%clk 0:01:33]}  b5 {[%clk 0:00:39]} 24. h3 {[%clk 0:01:30]}  Bb6 {[%clk 0:00:38]} 25. Kh2 {[%clk 0:01:30]}  a5 {[%clk 0:00:38]} 26. Rd2 {[%clk 0:01:30]}  a4 {[%clk 0:00:38]} 27. Red1 {[%clk 0:01:30]}  Qf7 {[%clk 0:00:36]} 28. Nc6 {[%clk 0:01:27]}  Be3 {[%clk 0:00:33]} 29. Nxb8 {[%clk 0:01:16]}  Rxb8 {[%clk 0:00:32]} 30. Rxd5 {[%clk 0:01:15]}  Qa7 {[%clk 0:00:12]} 31. Rd8+ {[%clk 0:01:14]}  Rxd8 {[%clk 0:00:12]} 32. Rxd8+ {[%clk 0:01:14]}  Kf7 {[%clk 0:00:13]} 33. Qd1 {[%clk 0:01:15]}  Kg6 {[%clk 0:00:12]} 34. Qd7 {[%clk 0:01:14]}  Bg1+ {[%clk 0:00:11]} 35. Kh1 {[%clk 0:01:14]}  Qf2 {[%clk 0:00:10]} 36. Rg8 {[%clk 0:01:07]}  Kh5 {[%clk 0:00:04]} 37. Qxg7 {[%clk 0:01:06]}  Qxg2+ {[%clk 0:00:03]} 38. Kxg2 {[%clk 0:01:05]}  Bd5+ {[%clk 0:00:04]} 39. Kxg1 {[%clk 0:01:06]}  h6 {[%clk 0:00:03]} 40. Qg4+ {[%clk 0:01:05]} 1-0


[Site "https://www.chess.com"]

[Event "Titled Tuesday Blitz June 6 Late 2023"]
[White "Goryachkina, Aleksandra"]
[Black "Sun, Rick"]
[WhiteFideId "4147103"]
[BlackFideId "30909481"]
[WhiteElo "2471"]
[BlackElo "2169"]
[Result "1/2-1/2"]
[Round "5"]
[TimeControl "180+2"]
[Date "2023.06.07"]
[WhiteClock "0:00:05"]
[BlackClock "0:00:06"]
[Board "49"]

1. e4 {[%clk 0:02:58]}  d6 {[%clk 0:03:00]} 2. d4 {[%clk 0:02:56]}  Nf6 {[%clk 0:03:01]} 3. Nc3 {[%clk 0:02:56]}  Nbd7 {[%clk 0:03:01]} 4. Nf3 {[%clk 0:02:55]}  e5 {[%clk 0:03:02]} 5. Bc4 {[%clk 0:02:54]}  Be7 {[%clk 0:03:02]} 6. O-O {[%clk 0:02:54]}  O-O {[%clk 0:03:02]} 7. a4 {[%clk 0:02:54]}  c6 {[%clk 0:03:02]} 8. Re1 {[%clk 0:02:54]}  Qc7 {[%clk 0:03:02]} 9. h3 {[%clk 0:02:50]}  h6 {[%clk 0:03:01]} 10. Ba2 {[%clk 0:02:50]}  Re8 {[%clk 0:03:01]} 11. Nh4 {[%clk 0:02:48]}  Nf8 {[%clk 0:02:59]} 12. Nf5 {[%clk 0:02:34]}  Bxf5 {[%clk 0:02:53]} 13. exf5 {[%clk 0:02:35]}  exd4 {[%clk 0:02:53]} 14. Qxd4 {[%clk 0:02:34]}  d5 {[%clk 0:02:54]} 15. Bf4 {[%clk 0:02:31]}  Bd6 {[%clk 0:02:41]} 16. Bxd6 {[%clk 0:02:05]}  Qxd6 {[%clk 0:02:42]} 17. b4 {[%clk 0:01:59]}  N8d7 {[%clk 0:02:09]} 18. a5 {[%clk 0:01:56]}  a6 {[%clk 0:01:41]} 19. Na4 {[%clk 0:01:47]}  Re4 {[%clk 0:00:54]} 20. Rxe4 {[%clk 0:01:40]}  Nxe4 {[%clk 0:00:55]} 21. Rd1 {[%clk 0:01:38]}  Re8 {[%clk 0:00:51]} 22. Nb6 {[%clk 0:00:58]}  Nxb6 {[%clk 0:00:46]} 23. axb6 {[%clk 0:00:58]}  Qe5 {[%clk 0:00:32]} 24. Qxe5 {[%clk 0:00:34]}  Rxe5 {[%clk 0:00:32]} 25. Bb3 {[%clk 0:00:34]}  Nc3 {[%clk 0:00:21]} 26. Rd3 {[%clk 0:00:13]}  d4 {[%clk 0:00:12]} 27. Kf1 {[%clk 0:00:11]}  Nb5 {[%clk 0:00:09]} 28. g4 {[%clk 0:00:11]}  Kf8 {[%clk 0:00:09]} 29. Bc4 {[%clk 0:00:10]}  h5 {[%clk 0:00:07]} 30. f4 {[%clk 0:00:05]}  Re4 {[%clk 0:00:06]} 31. Kg2 {[%clk 0:00:05]}  hxg4 {[%clk 0:00:06]} 32. hxg4 {[%clk 0:00:05]}  Rxf4 {[%clk 0:00:06]} 33. Kg3 {[%clk 0:00:06]}  Re4 {[%clk 0:00:06]} 34. Kf3 {[%clk 0:00:06]}  Re3+ {[%clk 0:00:06]} 35. Rxe3 {[%clk 0:00:06]}  dxe3 {[%clk 0:00:07]} 36. Kxe3 {[%clk 0:00:07]}  Nd6 {[%clk 0:00:07]} 37. Bd3 {[%clk 0:00:07]}  f6 {[%clk 0:00:08]} 38. Kd4 {[%clk 0:00:07]}  Ke7 {[%clk 0:00:08]} 39. Kc5 {[%clk 0:00:06]}  Kd7 {[%clk 0:00:08]} 40. c4 {[%clk 0:00:04]}  Nf7 {[%clk 0:00:08]} 41. Be2 {[%clk 0:00:03]}  Ne5 {[%clk 0:00:08]} 42. Kd4 {[%clk 0:00:03]}  Kd6 {[%clk 0:00:07]} 43. c5+ {[%clk 0:00:04]}  Kd7 {[%clk 0:00:08]} 44. Kc3 {[%clk 0:00:04]}  Nf7 {[%clk 0:00:08]} 45. Kd4 {[%clk 0:00:04]}  Ng5 {[%clk 0:00:08]} 46. Kc3 {[%clk 0:00:04]}  Ne4+ {[%clk 0:00:07]} 47. Kd4 {[%clk 0:00:05]}  Ng5 {[%clk 0:00:06]} 48. Ke3 {[%clk 0:00:04]}  Nf7 {[%clk 0:00:06]} 49. Kd4 {[%clk 0:00:05]}  Nh6 {[%clk 0:00:05]} 50. Ke4 {[%clk 0:00:04]}  Nf7 {[%clk 0:00:06]} 51. Kd4 {[%clk 0:00:05]} 1/2-1/2


[Site "https://www.chess.com"]

[Event "Titled Tuesday Blitz June 6 Late 2023"]
[White "Sargsyan, Anna M."]
[Black "Shuvalova, Polina"]
[WhiteFideId "13308130"]
[BlackFideId "24171760"]
[WhiteElo "2284"]
[BlackElo "2281"]
[Result "1/2-1/2"]
[Round "5"]
[TimeControl "180+2"]
[Date "2023.06.07"]
[WhiteClock "0:00:05"]
[BlackClock "0:00:03"]
[Board "51"]

1. e4 {[%clk 0:02:53]}  c6 {[%clk 0:02:59]} 2. d4 {[%clk 0:02:52]}  d5 {[%clk 0:03:00]} 3. exd5 {[%clk 0:02:53]}  cxd5 {[%clk 0:03:01]} 4. Bd3 {[%clk 0:02:53]}  Nc6 {[%clk 0:03:01]} 5. c3 {[%clk 0:02:54]}  Nf6 {[%clk 0:03:01]} 6. Bf4 {[%clk 0:02:52]}  Bg4 {[%clk 0:02:51]} 7. Qb3 {[%clk 0:02:50]}  Qd7 {[%clk 0:02:51]} 8. Nd2 {[%clk 0:02:46]}  e6 {[%clk 0:02:51]} 9. Ngf3 {[%clk 0:02:44]}  Bd6 {[%clk 0:02:50]} 10. Bxd6 {[%clk 0:02:42]}  Qxd6 {[%clk 0:02:51]} 11. O-O {[%clk 0:02:41]}  O-O {[%clk 0:02:50]} 12. Rfe1 {[%clk 0:02:40]}  Qc7 {[%clk 0:02:49]} 13. h3 {[%clk 0:02:37]}  Bxf3 {[%clk 0:02:44]} 14. Nxf3 {[%clk 0:02:38]}  a6 {[%clk 0:02:43]} 15. a4 {[%clk 0:02:38]}  Rab8 {[%clk 0:02:36]} 16. Ne5 {[%clk 0:02:36]}  Nxe5 {[%clk 0:02:35]} 17. Rxe5 {[%clk 0:02:37]}  b5 {[%clk 0:02:31]} 18. axb5 {[%clk 0:02:33]}  axb5 {[%clk 0:02:32]} 19. Qb4 {[%clk 0:02:18]}  Nd7 {[%clk 0:02:11]} 20. Ree1 {[%clk 0:02:11]}  Nb6 {[%clk 0:02:11]} 21. Ra6 {[%clk 0:01:49]}  Nc4 {[%clk 0:02:07]} 22. b3 {[%clk 0:01:48]}  Rfd8 {[%clk 0:01:48]} 23. Rea1 {[%clk 0:01:31]}  Nd6 {[%clk 0:01:39]} 24. Ra7 {[%clk 0:01:21]}  Rb7 {[%clk 0:01:38]} 25. Qc5 {[%clk 0:01:13]}  Qd7 {[%clk 0:01:03]} 26. Rxb7 {[%clk 0:01:07]}  Qxb7 {[%clk 0:01:03]} 27. Ra7 {[%clk 0:00:42]}  Qb8 {[%clk 0:01:03]} 28. Ra6 {[%clk 0:00:42]}  g6 {[%clk 0:00:58]} 29. Rb6 {[%clk 0:00:39]}  Qa8 {[%clk 0:00:20]} 30. Rxd6 {[%clk 0:00:35]}  Qa1+ {[%clk 0:00:18]} 31. Kh2 {[%clk 0:00:28]}  Rxd6 {[%clk 0:00:17]} 32. Qxd6 {[%clk 0:00:29]}  Qxc3 {[%clk 0:00:17]} 33. Bxb5 {[%clk 0:00:13]}  Qxb3 {[%clk 0:00:17]} 34. Be2 {[%clk 0:00:08]}  Qb2 {[%clk 0:00:15]} 35. Qe5 {[%clk 0:00:07]}  Qd2 {[%clk 0:00:11]} 36. Qe3 {[%clk 0:00:07]}  Qb2 {[%clk 0:00:11]} 37. h4 {[%clk 0:00:07]}  h5 {[%clk 0:00:11]} 38. Bd3 {[%clk 0:00:06]}  Kg7 {[%clk 0:00:10]} 39. g3 {[%clk 0:00:06]}  Kg8 {[%clk 0:00:09]} 40. Kg2 {[%clk 0:00:07]}  Qb6 {[%clk 0:00:09]} 41. Be2 {[%clk 0:00:07]}  Qb2 {[%clk 0:00:08]} 42. Qd3 {[%clk 0:00:08]}  Kg7 {[%clk 0:00:06]} 43. Qe3 {[%clk 0:00:07]}  Kg8 {[%clk 0:00:06]} 44. Bf3 {[%clk 0:00:05]}  Qa1 {[%clk 0:00:06]} 45. g4 {[%clk 0:00:05]}  hxg4 {[%clk 0:00:06]} 46. Bxg4 {[%clk 0:00:06]}  Qb1 {[%clk 0:00:03]} 47. Qe5 {[%clk 0:00:05]}  Qd3 {[%clk 0:00:02]} 48. h5 {[%clk 0:00:05]}  gxh5 {[%clk 0:00:02]} 49. Bxh5 {[%clk 0:00:05]}  Qh7 {[%clk 0:00:03]} 50. Bf3 {[%clk 0:00:04]}  Kf8 {[%clk 0:00:03]} 51. Kf1 {[%clk 0:00:04]}  Qb1+ {[%clk 0:00:02]} 52. Kg2 {[%clk 0:00:05]}  Qg6+ {[%clk 0:00:03]} 53. Qg3 {[%clk 0:00:04]}  Qd3 {[%clk 0:00:03]} 54. Qb8+ {[%clk 0:00:04]}  Kg7 {[%clk 0:00:03]} 55. Qe5+ {[%clk 0:00:05]}  Kf8 {[%clk 0:00:04]} 56. Qf4 {[%clk 0:00:05]}  Qg6+ {[%clk 0:00:04]} 57. Qg4 {[%clk 0:00:05]}  Qd3 {[%clk 0:00:04]} 58. Qf4 {[%clk 0:00:05]}  Qg6+ {[%clk 0:00:03]} 59. Kh2 {[%clk 0:00:06]}  Qh7+ {[%clk 0:00:03]} 60. Kg1 {[%clk 0:00:06]}  Qb1+ {[%clk 0:00:03]} 61. Kg2 {[%clk 0:00:05]}  Qg6+ {[%clk 0:00:03]} 1/2-1/2


[Site "https://www.chess.com"]

[Event "Titled Tuesday Blitz June 6 Late 2023"]
[White "Hollan, Martin"]
[Black "Novikov, Evgenij"]
[WhiteFideId "360937"]
[BlackFideId "4125380"]
[WhiteElo "2370"]
[BlackElo "2242"]
[Result "1-0"]
[Round "5"]
[TimeControl "180+2"]
[Date "2023.06.07"]
[WhiteClock "0:01:00"]
[BlackClock "0:00:01"]
[Board "54"]

1. b4 {[%clk 0:03:00]}  e5 {[%clk 0:02:57]} 2. Bb2 {[%clk 0:03:00]}  Bxb4 {[%clk 0:02:54]} 3. Bxe5 {[%clk 0:03:00]}  Nf6 {[%clk 0:02:54]} 4. e3 {[%clk 0:02:59]}  Nc6 {[%clk 0:02:52]} 5. Bb2 {[%clk 0:02:58]}  d6 {[%clk 0:02:45]} 6. Nf3 {[%clk 0:02:59]}  Bg4 {[%clk 0:02:44]} 7. Be2 {[%clk 0:02:59]}  O-O {[%clk 0:02:43]} 8. O-O {[%clk 0:02:58]}  a5 {[%clk 0:02:31]} 9. h3 {[%clk 0:02:53]}  Bh5 {[%clk 0:02:29]} 10. d3 {[%clk 0:02:50]}  Re8 {[%clk 0:02:24]} 11. Nbd2 {[%clk 0:02:49]}  Bxd2 {[%clk 0:02:10]} 12. Qxd2 {[%clk 0:02:44]}  Qd7 {[%clk 0:02:09]} 13. Rab1 {[%clk 0:02:42]}  Nd5 {[%clk 0:01:58]} 14. e4 {[%clk 0:02:37]}  Nb6 {[%clk 0:01:51]} 15. Qc3 {[%clk 0:02:14]}  f6 {[%clk 0:01:43]} 16. Bc1 {[%clk 0:02:06]}  Bf7 {[%clk 0:01:40]} 17. a3 {[%clk 0:02:02]}  d5 {[%clk 0:01:33]} 18. Be3 {[%clk 0:01:58]}  dxe4 {[%clk 0:01:27]} 19. dxe4 {[%clk 0:01:53]}  Rxe4 {[%clk 0:01:22]} 20. Rfd1 {[%clk 0:01:51]}  Qe8 {[%clk 0:00:54]} 21. Bb5 {[%clk 0:01:48]}  Nc4 {[%clk 0:00:48]} 22. Bc5 {[%clk 0:01:35]}  Qe6 {[%clk 0:00:41]} 23. Re1 {[%clk 0:01:26]}  Re8 {[%clk 0:00:37]} 24. Rxe4 {[%clk 0:01:25]}  Qxe4 {[%clk 0:00:38]} 25. Re1 {[%clk 0:01:25]}  Qxe1+ {[%clk 0:00:17]} 26. Nxe1 {[%clk 0:01:24]}  Nd6 {[%clk 0:00:12]} 27. Bxd6 {[%clk 0:01:21]}  cxd6 {[%clk 0:00:12]} 28. Nd3 {[%clk 0:01:18]}  Rc8 {[%clk 0:00:11]} 29. Bxc6 {[%clk 0:01:17]}  Rxc6 {[%clk 0:00:11]} 30. Qxa5 {[%clk 0:01:17]}  g6 {[%clk 0:00:10]} 31. Nb4 {[%clk 0:01:13]}  Rc5 {[%clk 0:00:07]} 32. Qd8+ {[%clk 0:01:13]}  Kg7 {[%clk 0:00:08]} 33. Qxd6 {[%clk 0:01:12]}  Re5 {[%clk 0:00:07]} 34. Qb6 {[%clk 0:01:05]}  Re1+ {[%clk 0:00:05]} 35. Kh2 {[%clk 0:01:05]}  Ra1 {[%clk 0:00:06]} 36. Qxb7 {[%clk 0:01:02]}  Rxa3 {[%clk 0:00:06]} 37. Nc6 {[%clk 0:01:00]}  Kf8 {[%clk 0:00:03]} 38. Nd8 {[%clk 0:01:00]}  Ba2 {[%clk 0:00:01]} 39. Qb4+ {[%clk 0:01:00]}  Ke8 {[%clk 0:00:01]} 40. Qxa3 {[%clk 0:01:00]} 1-0


[Site "https://www.chess.com"]

[Event "Titled Tuesday Blitz June 6 Late 2023"]
[White "Krsnik Cohar, Ivan Vihor"]
[Black "Martinez Ramirez, Lennis"]
[WhiteFideId "14520044"]
[BlackFideId "3509079"]
[WhiteElo "2414"]
[BlackElo "2410"]
[Result "0-1"]
[Round "5"]
[TimeControl "180+2"]
[Date "2023.06.07"]
[WhiteClock "0:00:03"]
[BlackClock "0:00:16"]
[Board "55"]

1. e4 {[%clk 0:02:57]}  c5 {[%clk 0:03:00]} 2. Ne2 {[%clk 0:02:57]}  Nc6 {[%clk 0:03:00]} 3. g3 {[%clk 0:02:57]}  d5 {[%clk 0:02:59]} 4. Bg2 {[%clk 0:02:57]}  dxe4 {[%clk 0:02:58]} 5. Nbc3 {[%clk 0:02:58]}  f5 {[%clk 0:02:54]} 6. d3 {[%clk 0:02:58]}  exd3 {[%clk 0:02:53]} 7. Nf4 {[%clk 0:02:58]}  Nf6 {[%clk 0:02:50]} 8. cxd3 {[%clk 0:02:58]}  g6 {[%clk 0:02:37]} 9. O-O {[%clk 0:02:52]}  Bg7 {[%clk 0:02:37]} 10. Be3 {[%clk 0:02:50]}  Nd4 {[%clk 0:02:35]} 11. Qa4+ {[%clk 0:02:18]}  Bd7 {[%clk 0:02:34]} 12. Qc4 {[%clk 0:02:18]}  e5 {[%clk 0:02:30]} 13. Qxc5 {[%clk 0:01:43]}  Nc6 {[%clk 0:01:57]} 14. Bxc6 {[%clk 0:01:25]}  Bxc6 {[%clk 0:01:54]} 15. Qxe5+ {[%clk 0:01:25]}  Qe7 {[%clk 0:01:54]} 16. Ne6 {[%clk 0:01:08]}  Kf7 {[%clk 0:01:43]} 17. Ng5+ {[%clk 0:01:01]}  Ke8 {[%clk 0:01:41]} 18. Qe6 {[%clk 0:00:53]}  Qxe6 {[%clk 0:00:45]} 19. Nxe6 {[%clk 0:00:53]}  Kf7 {[%clk 0:00:44]} 20. Nxg7 {[%clk 0:00:48]}  Kxg7 {[%clk 0:00:45]} 21. Rfe1 {[%clk 0:00:36]}  Rhd8 {[%clk 0:00:45]} 22. Bg5 {[%clk 0:00:26]}  Kf7 {[%clk 0:00:43]} 23. Re3 {[%clk 0:00:26]}  h6 {[%clk 0:00:34]} 24. Bxf6 {[%clk 0:00:15]}  Kxf6 {[%clk 0:00:35]} 25. Rae1 {[%clk 0:00:07]}  Rd6 {[%clk 0:00:35]} 26. Re7 {[%clk 0:00:04]}  Rad8 {[%clk 0:00:35]} 27. Rh7 {[%clk 0:00:04]}  Kg5 {[%clk 0:00:34]} 28. h4+ {[%clk 0:00:03]}  Kh5 {[%clk 0:00:34]} 29. Ne2 {[%clk 0:00:04]}  Kg4 {[%clk 0:00:27]} 30. Rxh6 {[%clk 0:00:02]}  Re8 {[%clk 0:00:27]} 31. Kf1 {[%clk 0:00:02]}  Rde6 {[%clk 0:00:22]} 32. d4 {[%clk 0:00:01]}  Bb5 {[%clk 0:00:21]} 33. Kg2 {[%clk 0:00:01]}  Bxe2 {[%clk 0:00:18]} 34. Rxe2 {[%clk 0:00:02]}  Rxe2 {[%clk 0:00:18]} 35. Rxg6+ {[%clk 0:00:02]}  Kh5 {[%clk 0:00:19]} 36. Rg5+ {[%clk 0:00:03]}  Kh6 {[%clk 0:00:19]} 37. Rxf5 {[%clk 0:00:03]}  Rxb2 {[%clk 0:00:19]} 38. g4 {[%clk 0:00:04]}  Re4 {[%clk 0:00:18]} 39. Kg3 {[%clk 0:00:03]}  Rxd4 {[%clk 0:00:18]} 40. Rf6+ {[%clk 0:00:03]}  Kg7 {[%clk 0:00:18]} 41. g5 {[%clk 0:00:03]}  Rxa2 {[%clk 0:00:18]} 42. f4 {[%clk 0:00:03]}  Ra1 {[%clk 0:00:17]} 43. Kg4 {[%clk 0:00:03]}  Rg1+ {[%clk 0:00:17]} 44. Kh5 {[%clk 0:00:03]}  Rd7 {[%clk 0:00:18]} 45. f5 {[%clk 0:00:03]}  Rf7 {[%clk 0:00:18]} 46. Rg6+ {[%clk 0:00:03]}  Kf8 {[%clk 0:00:18]} 47. f6 {[%clk 0:00:04]}  Rh7+ {[%clk 0:00:18]} 48. Rh6 {[%clk 0:00:03]}  Rxh6+ {[%clk 0:00:18]} 49. Kxh6 {[%clk 0:00:04]}  a5 {[%clk 0:00:17]} 50. h5 {[%clk 0:00:04]}  a4 {[%clk 0:00:18]} 51. Kh7 {[%clk 0:00:03]}  Rxg5 {[%clk 0:00:16]} 0-1


[Site "https://www.chess.com"]